bitfinex-derivatives/quotes_ETHF0:USTF0_20240901
["timestamp","ask_amount","ask_price","bid_price","bid_amount"]
[1725231556713,3.2078,2405.9,2404.9,3.2078]
[1725231557016,0.00623545,2405.6,2405.2,0.00623545]
[1725231557711,4.52875706,2405.5,2405.2,0.00623545]
[1725231557913,0.00623545,2405.6,2405.3,3.2078]
[1725231558109,0.00623545,2405.6,2405.2,0.00623545]
[1725231558110,4.1576,2405.5,2405.2,0.00623545]
[1725231558314,8.1978,2405.4,2403.2,3.2078]
[1725231558629,4.99,2405.1,2403.6,3.2078]
[1725231558915,8.1978,2405.8,2404.2,3.2078]
[1725231559123,3.2078,2407.4,2405.7,3.2078]
[1725231559311,3.2078,2407.4,2402.4,1.4345]
[1725231559312,3.2078,2407.1,2405.9,3.2078]
[1725231559512,1.03785,2408.7,2405.9,3.2078]
[1725231559513,4.7110493,2406.8,2406.7,0.41548]
[1725231559812,0.00623545,2406.8,2406.2,3.2078]
[1725231560318,4.71084579,2406.8,2406.2,7.363]
[1725231560515,3.2078,2407.7,2407.1,0.4154]
[1725231560715,1.03763,2409.3,2407.2,3.2078]
[1725231560716,0.4152,2408.4,2407.2,3.2078]
[1725231561019,8.1978,2408.5,2407.2,3.2078]
[1725231561020,4.70461034,2407.6,2407.2,3.2078]
[1725231561219,7.88675899,2408.2,2406.8,3.2078]
[1725231561411,3.2078,2408.2,2406.8,3.2078]
[1725231561712,3.2078,2408.2,2405.7,1.03914]
[1725231561713,4.67895899,2408.1,2407.4,3.2078]
[1725231561915,3.2078,2408.0,2406.9,8.94248275]
[1725231562113,0.00623545,2407.7,2407.3,0.00623545]
[1725231562517,0.31523706,2407.6,2407.3,0.00623545]
[1725231563019,0.00623545,2407.7,2407.3,0.00623545]
[1725231563225,4.80009209,2407.6,2407.3,0.00623545]
[1725231563420,0.00623545,2407.7,2406.6,3.2078]
[1725231563616,0.00623545,2407.7,2406.8,3.2078]
[1725231564025,3.2078,2407.3,2405.9,3.2078]
[1725231564217,4.52617406,2407.6,2405.1,3.2078]
[1725231564218,3.2078,2406.0,2405.1,3.2078]
[1725231564415,4.99,2406.0,2404.7,3.2078]
[1725231564616,4.99,2406.0,2403.9,0.21017915]
[1725231564617,4.99,2404.8,2404.5,8.60438961]
[1725231564824,4.99,2404.8,2403.8,3.2078]
[1725231565017,3.2078,2404.4,2403.8,3.2078]
[1725231565322,0.00623545,2405.6,2404.3,3.2078]
[1725231565526,3.2078,2405.6,2404.1,3.2078]
[1725231565832,3.2078,2404.3,2403.4,3.2078]
[1725231566124,3.2078,2404.3,2403.1,0.4161]
[1725231566125,5.19938195,2404.2,2403.1,0.4161]
[1725231566318,5.19938195,2404.2,2403.0,3.2078]
[1725231566319,3.2078,2403.7,2403.0,3.2078]
[1725231566521,3.2078,2403.8,2402.5,0.416]
[1725231566718,1.74451464,2403.6,2403.5,0.41603]
[1725231566922,3.2078,2405.3,2403.7,3.2078]
[1725231567231,3.2078,2403.8,2403.6,7.63807804]
[1725231567522,3.2078,2404.0,2403.5,4.1592]
[1725231567821,7.73330305,2403.7,2402.3,3.6238]
[1725231568028,3.2078,2403.4,2402.6,3.2078]
[1725231568228,3.2078,2402.9,2402.6,14.29439886]
[1725231568416,4.41987472,2403.3,2402.6,3.2078]
[1725231568620,3.2078,2403.5,2403.2,4.1592]
[1725231568922,3.2078,2403.5,2401.9,0.4168]
[1725231568923,4.48354069,2403.4,2403.1,4.1592]
[1725231569121,7.69134069,2403.4,2403.1,4.1592]
[1725231569420,0.41603,2403.6,2401.9,0.4168]
[1725231569421,0.00623545,2403.6,2402.6,3.62398]
[1725231569623,3.21403545,2403.6,2403.4,4.1592]
[1725231569819,4.7162285,2403.5,2403.4,4.1592]
[1725231570122,4.7162285,2403.5,2402.1,13.99905357]
[1725231570123,4.7162285,2403.5,2402.7,3.2078]
[1725231570324,4.7162285,2403.5,2403.4,4.1592]
[1725231570623,4.7162285,2403.5,2402.4,3.2078]
[1725231570624,3.21403545,2403.6,2403.1,4.1592]
[1725231570827,3.21403545,2403.6,2402.6,9.05023613]
[1725231570828,3.2078,2403.4,2403.0,4.1592]
[1725231571127,3.21403545,2403.6,2403.0,4.1592]
[1725231571424,3.21403545,2403.6,2402.0,8.2078]
[1725231571425,4.57161744,2403.4,2402.0,8.2078]
[1725231571626,3.2078,2403.2,2402.0,8.2078]
[1725231571825,4.57161744,2403.4,2402.0,8.2078]
[1725231571826,3.2078,2403.4,2403.1,4.1592]
[1725231572020,4.42739132,2403.1,2402.8,0.41615]
[1725231572222,3.2078,2403.3,2402.3,3.2078]
[1725231572524,1.03929,2405.4,2402.1,1.04069]
[1725231572525,3.2078,2404.2,2402.9,17.38560455]
[1725231572721,3.2078,2404.6,2403.6,0.416]
[1725231572926,4.42739132,2404.9,2403.8,3.2078]
[1725231573117,3.2078,2405.0,2403.7,14.34411949]
[1725231573321,3.2078,2405.0,2403.6,0.416]
[1725231573322,3.2078,2405.0,2403.9,14.42851745]
[1725231573528,3.2078,2404.0,2403.1,3.2078]
[1725231573827,3.21403545,2403.8,2403.3,0.00623545]
[1725231574027,3.2078,2403.5,2403.3,0.00623545]
[1725231574222,3.2078,2403.7,2403.3,0.00623545]
[1725231574427,0.00623545,2403.8,2403.3,0.00623545]
[1725231574629,7.75486324,2403.7,2403.3,0.00623545]
[1725231574831,3.2078,2403.7,2403.3,0.00623545]
[1725231575128,4.45686238,2403.6,2403.3,0.00623545]
[1725231576233,0.00623545,2403.8,2403.3,0.00623545]
[1725231576830,0.00623545,2403.8,2403.3,0.42229545]
[1725231577131,3.2078,2403.4,2403.3,0.00623545]
[1725231577332,3.2078,2403.5,2403.3,0.00623545]
[1725231577830,0.00623545,2403.8,2403.4,4.1608]
[1725231578236,3.2078,2404.4,2403.7,0.416]
[1725231578531,3.2078,2404.7,2403.8,14.18109955]
[1725231578731,4.99,2405.1,2403.8,14.18109955]
[1725231578732,3.2078,2404.3,2403.8,14.18109955]
[1725231578934,3.2078,2403.9,2403.1,3.2078]
[1725231579237,4.99,2404.5,2403.1,3.2078]
[1725231579238,3.2078,2403.6,2403.1,3.2078]
[1725231579428,3.2078,2403.6,2403.3,0.00623545]
[1725231579629,0.00623545,2403.7,2403.4,0.41604]
[1725231579842,0.00623545,2403.7,2403.5,0.41603]
[1725231580132,0.00623545,2403.7,2403.6,4.57682]
[1725231580333,0.00623545,2403.7,2403.6,15.94396119]
[1725231580634,0.00623545,2403.7,2403.6,4.1608]
[1725231581723,3.2078,2404.3,2403.6,4.16]
[1725231581930,3.79177,2403.9,2403.4,0.41605]
[1725231582131,3.79177,2403.9,2403.3,0.00623545]
[1725231582331,3.2078,2403.9,2403.5,5.31904562]
[1725231582531,3.2078,2403.9,2403.6,0.41601]
[1725231582834,3.2078,2403.9,2403.7,0.05483086]
[1725231583027,3.2078,2403.9,2403.7,4.21483086]
[1725231583228,3.2078,2403.9,2403.8,4.16]
[1725231583625,0.00623545,2404.0,2403.8,10.57597]
[1725231583935,3.21403545,2404.0,2403.9,4.21483086]
[1725231584234,3.21403545,2404.0,2403.9,0.05483086]
[1725231584435,11.68045814,2404.0,2403.4,13.69396849]
[1725231584639,7.1978,2403.5,2403.3,0.00623545]
[1725231584936,0.41605,2403.4,2403.3,0.00623545]
[1725231585135,8.99139658,2403.4,2403.3,0.00623545]
[1725231585337,7.1978,2403.5,2403.3,0.00623545]
[1725231585632,3.2078,2403.5,2403.4,4.1608]
[1725231585830,3.2078,2403.5,2403.4,4.21563086]
[1725231586535,3.2078,2403.5,2403.4,0.05483086]
[1725231586929,3.2078,2403.5,2403.4,4.21563086]
[1725231587944,2.58368162,2403.5,2403.4,4.21563086]
[1725231588241,2.58368162,2403.5,2403.4,0.10969901]
[1725231588634,2.58368162,2403.5,2403.4,4.27049901]
[1725231588830,2.58368162,2403.5,2403.4,4.68654901]
[1725231589032,2.58368162,2403.5,2403.4,10.68654901]
[1725231589232,0.00623545,2404.0,2403.9,0.41596]
[1725231589732,0.00623545,2404.0,2403.9,4.57596]
[1725231590039,0.00623545,2404.0,2403.9,10.57596]
[1725231590245,0.00623545,2404.0,2403.9,10.68565901]
[1725231591241,2.37903,2405.8,2404.5,0.41585]
[1725231591242,7.1978,2405.1,2404.5,0.41585]
[1725231591540,7.1978,2405.1,2404.8,0.15676188]
[1725231591541,3.2078,2404.9,2404.8,0.15676188]
[1725231591739,4.38445749,2405.0,2404.8,0.15676188]
[1725231591941,3.2078,2405.2,2405.1,0.41576]
[1725231592134,3.2078,2405.2,2404.8,0.15676188]
[1725231592331,0.00623545,2405.2,2405.1,0.41576]
[1725231592543,0.00623545,2405.2,2405.1,0.57252188]
[1725231592838,0.00623545,2405.2,2405.1,10.73012188]
[1725231593238,5.45e-06,2405.2,2405.1,10.73012188]
[1725231593534,7.1978,2406.2,2405.7,0.41565]
[1725231593742,7.1978,2406.2,2405.8,0.41563]
[1725231594045,7.1978,2406.2,2405.7,0.41565]
[1725231594340,7.1978,2406.2,2405.7,0.41564]
[1725231594341,7.20403545,2406.2,2405.7,0.41564]
[1725231594641,7.20403545,2406.2,2405.9,0.15676188]
[1725231595142,7.20403545,2406.2,2405.9,4.72837188]
[1725231595444,3.99623545,2406.2,2406.0,0.4156]
[1725231595634,3.99623545,2406.2,2406.1,0.15676188]
[1725231596441,8.15223545,2406.2,2406.1,0.15676188]
[1725231596840,3.99623545,2406.2,2406.1,0.15676188]
[1725231597350,0.00623545,2406.2,2406.1,4.31276188]
[1725231597742,0.00623545,2406.2,2406.1,0.15676188]
[1725231597945,0.00623545,2406.2,2406.1,4.31276188]
[1725231598238,0.00623545,2406.2,2406.1,0.15676188]
[1725231598444,0.00623545,2406.2,2406.1,4.31276188]
[1725231599050,0.00623545,2406.2,2406.1,0.15676188]
[1725231599239,0.00623545,2406.2,2406.1,0.21171123]
[1725231600236,14.15223545,2406.2,2405.2,0.416]
[1725231600437,3.2078,2405.7,2405.1,0.416]
[1725231600637,3.2078,2406.1,2405.3,5.51152442]
[1725231600840,4.426476,2406.2,2406.0,3.2078]
[1725231600841,0.00623545,2406.2,2406.0,3.2078]
[1725231601192,0.00623545,2406.2,2405.2,5.51152442]
[1725231601193,4.82395957,2406.0,2405.2,5.51152442]
[1725231601441,1.0394,2405.1,2404.3,1.5913091]
[1725231601647,7.1978,2404.4,2403.0,1.3941]
[1725231601834,3.99,2403.8,2403.1,0.41609]
[1725231602032,3.99,2404.1,2403.1,5.50128781]
[1725231602248,3.99,2404.1,2403.2,0.4168]
[1725231602434,3.99,2403.8,2403.4,0.00623545]
[1725231602847,0.00623545,2403.9,2403.4,0.00623545]
[1725231603241,4.76444888,2403.7,2403.4,0.00623545]
[1725231603433,7.4127541,2403.8,2403.4,0.00623545]
[1725231603639,7.1978,2403.5,2403.4,0.00623545]
[1725231603840,7.1978,2403.5,2402.0,5.0]
[1725231604050,3.2078,2403.0,2402.0,5.0]
[1725231604245,3.2078,2402.7,2402.0,5.0]
[1725231604449,4.62151,2402.9,2402.4,0.41622]
[1725231604745,3.2078,2402.8,2402.2,0.41625]
[1725231604946,0.00623545,2402.9,2402.4,0.00623545]
[1725231605262,3.2078,2402.5,2402.4,0.00623545]
[1725231605437,3.99,2402.6,2402.4,0.00623545]
[1725231605742,3.46749093,2402.5,2402.4,0.00623545]
[1725231606054,4.57861,2402.5,2402.4,0.00623545]
[1725231606243,4.57861,2402.5,2402.0,5.0]
[1725231606244,0.41628,2402.1,2402.0,5.0]
[1725231606442,0.41632,2401.9,2400.6,3.2078]
[1725231606742,7.1978,2402.1,2400.6,3.2078]
[1725231606743,3.2078,2401.4,2400.7,5.0]
[1725231606947,4.48976883,2401.8,2400.0,4.4]
[1725231606948,3.2078,2400.9,2400.0,4.4]
[1725231607140,4.48976883,2401.8,2400.0,4.4]
[1725231607141,3.2078,2400.7,2400.0,4.4]
[1725231607341,3.99,2400.4,2400.0,9.4]
[1725231607546,0.00624883,2400.6,2400.1,0.00624883]
[1725231607747,1.04061,2402.4,2400.1,0.00624883]
[1725231607748,3.2078,2401.5,2400.5,1.29722611]
[1725231607962,4.55621506,2401.4,2401.2,1.29722611]
[1725231608246,3.2078,2401.5,2400.6,13.99314583]
[1725231608247,3.2078,2401.3,2400.6,13.99314583]
[1725231608443,4.41066682,2401.3,2401.1,1.29722611]
[1725231608645,3.2078,2401.2,2401.0,0.00624883]
[1725231608958,0.00624883,2401.4,2400.3,1.04147]
[1725231609145,8.83e-06,2401.4,2401.3,3.62422]
[1725231609346,0.2882547,2403.5,2401.3,3.83589679]
[1725231609347,3.2078,2403.1,2401.3,3.83589679]
[1725231609548,3.2078,2403.4,2402.3,3.2078]
[1725231609750,3.95813943,2403.4,2403.3,0.41607]
[1725231610058,3.2078,2404.5,2403.3,4.1608]
[1725231610251,3.2078,2404.4,2403.6,3.2078]
[1725231610556,3.2078,2403.9,2402.5,3.6238]
[1725231610754,3.2078,2403.4,2402.6,0.41619]
[1725231610966,3.2078,2403.1,2402.5,3.2078]
[1725231611148,7.58283943,2403.3,2401.9,4.5805]
[1725231611348,8.2078,2403.5,2402.2,3.2078]
[1725231611557,3.2078,2402.9,2402.0,14.5013254]
[1725231611753,0.00624883,2403.1,2402.6,0.00624883]
[1725231611947,4.69422221,2402.8,2402.6,0.00624883]
[1725231612150,3.62397,2402.7,2402.6,0.00624883]
[1725231612345,3.62397,2402.7,2401.7,0.41633]
[1725231612649,4.74810704,2402.7,2401.8,5.33339896]
[1725231612854,0.00624883,2403.1,2403.0,0.41612]
[1725231613053,8.83e-06,2403.1,2403.0,0.41612]
[1725231613244,8.83e-06,2403.1,2403.0,10.57772]
[1725231613445,8.83e-06,2403.1,2403.0,16.09928844]
[1725231613652,3.2078,2404.4,2403.0,24.94455527]
[1725231613853,3.2078,2404.8,2404.3,0.4159]
[1725231614050,3.2078,2405.4,2404.2,3.2078]
[1725231614358,3.2078,2405.4,2404.8,0.41581]
[1725231614546,3.2078,2405.4,2404.8,6.41581]
[1725231614851,5.0,2406.2,2405.5,0.41569]
[1725231614852,3.2078,2405.7,2405.5,0.41569]
[1725231615055,3.2078,2405.7,2404.8,11.34551375]
[1725231615056,3.2078,2407.0,2405.6,3.2078]
[1725231615261,3.2078,2407.0,2406.4,3.2078]
[1725231615657,3.2078,2407.0,2404.8,2.64980407]
[1725231615658,5.0,2406.6,2405.4,3.2078]
[1725231615967,3.2078,2405.7,2404.8,3.2078]
[1725231616145,5.0,2406.1,2405.8,0.00623571]
[1725231616350,3.62342,2405.9,2405.8,0.00623571]
[1725231616653,9.2078,2405.9,2403.8,1.32]
[1725231616957,3.2078,2405.3,2404.0,17.48399053]
[1725231617153,3.2078,2404.7,2404.0,14.27619053]
[1725231617357,3.2078,2404.4,2402.6,1.32]
[1725231617550,3.2078,2404.1,2403.3,3.2078]
[1725231617748,5.46178608,2404.6,2403.3,8.50734248]
[1725231617749,0.00623571,2403.7,2403.3,8.50734248]
[1725231617958,0.00623571,2403.7,2403.3,3.21403571]
[1725231618149,0.00623571,2403.7,2403.4,4.1608]
[1725231618464,3.2078,2403.6,2403.3,0.00623571]
[1725231618667,3.2078,2403.6,2401.8,3.2078]
[1725231618668,5.0,2403.5,2401.8,3.2078]
[1725231618850,3.2078,2402.8,2401.8,3.2078]
[1725231619047,3.2078,2401.9,2401.0,3.50189287]
[1725231619254,3.2078,2401.3,2400.4,2.12174547]
[1725231619459,3.2078,2401.3,2400.0,4.4]
[1725231619460,3.2078,2401.1,2400.0,4.4]
[1725231619665,3.2078,2401.1,2400.1,0.4168]
[1725231619856,5.0,2401.8,2400.2,14.26746603]
[1725231619857,3.2078,2401.5,2400.2,14.26746603]
[1725231620056,1.243,2403.4,2400.7,0.41652]
[1725231620057,0.00623571,2400.8,2400.7,0.41652]
[1725231620261,5.0,2402.3,2400.2,0.4166]
[1725231620262,3.2078,2401.3,2400.2,0.4166]
[1725231620452,3.2078,2401.3,2400.2,0.4168]
[1725231620653,3.2078,2401.3,2400.4,8.60862761]
[1725231620853,3.2078,2401.9,2400.9,3.2078]
[1725231621258,4.33290565,2402.2,2401.2,3.2078]
[1725231621465,6.243,2403.4,2401.8,3.2078]
[1725231621466,3.2078,2403.2,2401.8,3.2078]
[1725231621658,7.54070565,2403.3,2401.8,3.2078]
[1725231621858,3.2078,2403.3,2402.3,3.2078]
[1725231622163,3.2078,2403.3,2403.1,0.41609]
[1725231622461,3.2078,2404.3,2403.6,0.416]
[1725231622668,3.2078,2404.3,2403.2,5.8631844]
[1725231622669,0.00624883,2403.4,2403.2,5.8631844]
[1725231622970,0.00624883,2403.4,2403.3,0.41607]
[1725231623271,0.00624883,2403.4,2403.3,9.6071844]
[1725231623453,0.00624883,2403.4,2403.3,4.57687]
[1725231623657,3.2078,2404.3,2404.0,0.41595]
[1725231624062,3.2078,2404.3,2403.2,0.41608]
[1725231624272,3.2078,2403.8,2403.0,3.21404883]
[1725231624459,5.0,2404.0,2403.0,0.00624883]
[1725231624460,3.2078,2403.4,2403.0,0.00624883]
[1725231624657,3.2078,2403.4,2403.0,4.16704883]
[1725231624866,0.00624883,2403.4,2403.3,0.41607]
[1725231625066,3.2078,2404.2,2403.6,0.41601]
[1725231625364,3.2078,2404.2,2403.0,3.21404883]
[1725231625561,3.2078,2403.9,2403.0,3.21404883]
[1725231626080,0.00624883,2403.7,2403.0,3.21404883]
[1725231626254,0.00624883,2403.7,2403.1,14.15302323]
[1725231626563,0.00624883,2403.7,2403.1,4.1608]
[1725231626769,0.00624883,2403.7,2403.2,9.51875939]
[1725231626956,3.2078,2405.1,2403.6,3.2078]
[1725231627459,8.2078,2405.5,2404.6,0.41584]
[1725231627655,3.2078,2405.5,2404.3,3.2078]
[1725231627862,0.00389054,2405.1,2404.7,13.87310947]
[1725231628061,0.00389054,2405.1,2404.8,0.4158]
[1725231628256,0.00389054,2405.1,2404.9,4.1584]
[1725231628465,0.00389054,2405.1,2404.8,14.41825589]
[1725231628658,0.00389054,2405.1,2404.7,0.00624883]
[1725231629168,3.21169054,2405.1,2404.7,0.00624883]
[1725231629366,0.00389054,2405.1,2405.0,0.41577]
[1725231629571,3.2078,2405.9,2404.9,3.2078]
[1725231629759,3.2078,2405.9,2405.0,14.28738272]
[1725231630163,3.37247976,2405.8,2405.0,0.41577]
[1725231630478,3.2078,2405.8,2405.1,5.33244895]
[1725231630669,0.41572,2405.4,2405.2,0.00623571]
[1725231631073,8.65936898,2405.3,2403.9,0.416]
[1725231631365,3.2078,2404.8,2403.6,0.41601]
[1725231631562,3.62364,2404.7,2403.5,0.416]
[1725231631760,7.75443709,2404.7,2403.6,5.2863935]
[1725231631965,3.2078,2404.7,2403.6,16.97667962]
[1725231632159,0.00619198,2404.4,2404.3,0.4159]
[1725231632362,0.00619198,2404.4,2404.3,4.5751]
[1725231632570,8.2078,2405.5,2404.8,0.4158]
[1725231632776,3.2078,2405.9,2404.8,3.2078]
[1725231632963,3.2078,2406.5,2405.9,0.41562]
[1725231633167,3.2078,2406.5,2405.0,3.2078]
[1725231633366,3.2078,2406.5,2405.3,3.2078]
[1725231633562,3.2078,2406.5,2406.0,0.41558]
[1725231633767,0.41543,2407.0,2406.1,4.156]
[1725231633768,3.2078,2407.0,2406.1,4.156]
[1725231633967,3.2078,2406.4,2405.7,0.00623571]
[1725231634160,3.2078,2406.1,2405.7,0.00623571]
[1725231634361,4.61340939,2406.3,2405.9,0.4156]
[1725231634560,3.2078,2406.7,2405.8,5.80950352]
[1725231634968,5.0,2407.6,2405.8,5.80950352]
[1725231634969,3.2078,2407.4,2406.0,14.08242878]
[1725231635166,3.2078,2407.4,2406.9,0.41544]
[1725231635366,3.2078,2407.4,2406.9,0.00623571]
[1725231635681,3.2078,2407.4,2406.8,0.41545]
[1725231635682,3.2078,2407.1,2406.3,3.2078]
[1725231636174,0.4153,2407.8,2406.5,5.41325781]
[1725231636175,3.2078,2407.8,2406.5,5.41325781]
[1725231636479,3.2078,2407.8,2406.3,3.2078]
[1725231636480,3.2078,2406.9,2406.0,0.4156]
[1725231636772,3.2078,2406.6,2406.4,0.05682503]
[1725231636972,3.6233,2406.6,2406.4,0.05682503]
[1725231637178,3.2078,2406.6,2406.4,0.05682503]
[1725231637380,3.2078,2406.6,2406.2,0.00623571]
[1725231637381,4.57889141,2406.5,2406.2,0.00623571]
[1725231637680,3.2078,2406.6,2406.2,0.00623571]
[1725231637874,0.00623571,2406.7,2406.3,4.1552]
[1725231638067,0.00623571,2406.7,2406.3,15.50125305]
[1725231638268,0.00623571,2406.7,2406.6,0.4155]
[1725231638482,0.41531,2407.7,2406.4,12.75250961]
[1725231638483,3.2078,2407.5,2406.4,12.75250961]
[1725231638779,0.41555,2406.3,2406.2,0.00623571]
[1725231638966,3.2078,2406.3,2406.2,0.00623571]
[1725231639165,3.2078,2407.0,2406.2,4.16223571]
[1725231639473,3.2078,2406.4,2406.2,0.00623571]
[1725231639668,0.41555,2406.3,2406.2,0.00623571]
[1725231639872,7.3638,2406.4,2406.2,0.00623571]
[1725231640076,7.3638,2406.4,2405.1,0.416]
[1725231640266,7.75643736,2406.3,2405.1,0.416]
[1725231640469,3.2078,2406.7,2405.3,3.2078]
[1725231640665,3.2078,2406.7,2405.6,3.2078]
[1725231640869,3.2078,2406.7,2406.4,0.41552]
[1725231641079,3.2078,2406.7,2406.5,0.41551]
[1725231641273,0.00623571,2406.8,2406.7,0.41548]
[1725231641468,3.2078,2407.8,2407.4,0.41536]
[1725231641665,3.6231,2407.8,2407.0,0.41542]
[1725231641872,3.6231,2407.8,2406.5,3.2078]
[1725231641873,3.62321,2407.2,2406.2,3.2078]
[1725231642067,3.2078,2407.4,2406.2,3.2078]
[1725231642271,3.2078,2407.4,2406.3,5.29149419]
[1725231642466,3.2078,2407.7,2406.6,0.00623571]
[1725231642667,0.41541,2407.2,2406.6,0.00623571]
[1725231642871,3.2078,2406.9,2406.6,0.00623571]
[1725231643072,3.62326,2406.9,2406.6,0.00623571]
[1725231643271,0.41547,2406.8,2406.6,0.00623571]
[1725231643477,3.2078,2406.9,2406.6,0.00623571]
[1725231643975,3.2078,2407.2,2406.6,4.57693571]
[1725231644175,3.2078,2407.2,2406.6,0.00623571]
[1725231644366,3.2078,2406.9,2406.6,0.00623571]
[1725231644766,4.41075136,2406.8,2405.5,0.416]
[1725231644974,3.2078,2406.3,2405.5,0.416]
[1725231645169,3.2078,2406.6,2405.8,5.31734831]
[1725231645483,3.2078,2406.6,2405.8,4.156]
[1725231645675,0.00623571,2406.4,2406.0,0.00623571]
[1725231645978,0.00623571,2406.4,2406.2,0.41557]
[1725231646277,0.00623571,2406.4,2406.2,4.156]
[1725231646577,0.00623571,2406.4,2406.0,0.00623571]
[1725231646779,3.2078,2406.2,2406.0,0.00623571]
[1725231647082,3.2078,2406.2,2404.4,2.62294491]
[1725231647083,1.03902,2406.0,2404.6,0.416]
[1725231647281,3.2078,2405.5,2404.6,0.416]
[1725231647577,3.2078,2405.5,2405.1,0.41575]
[1725231647876,3.2078,2405.5,2405.1,0.00623571]
[1725231648083,3.2078,2405.8,2405.7,0.41565]
[1725231648270,3.2078,2405.8,2405.2,14.01214117]
[1725231648471,3.2078,2405.8,2405.4,0.4157]
[1725231648674,3.2078,2405.8,2405.2,8.4955409]
[1725231648974,0.00623571,2406.4,2405.1,0.00623571]
[1725231648975,3.2078,2405.5,2405.1,0.00623571]
[1725231649177,3.2078,2405.8,2405.1,0.00623571]
[1725231649373,3.2078,2405.2,2404.0,0.416]
[1725231649590,3.2078,2404.3,2403.5,3.2078]
[1725231649769,3.2078,2404.3,2403.0,0.416]
[1725231649770,3.2078,2404.0,2403.0,0.416]
[1725231649968,0.41617,2402.8,2401.9,3.6241]
[1725231650169,1.04018,2403.3,2401.5,3.2078]
[1725231650170,3.2078,2402.5,2401.5,3.2078]
[1725231650380,3.2078,2401.9,2401.1,5.36774232]
[1725231650685,4.1648,2401.3,2400.4,3.2078]
[1725231650883,7.7997556,2401.8,2401.3,0.00623571]
[1725231651179,3.53453392,2402.6,2401.3,6.00623571]
[1725231651483,1.03977,2404.3,2402.1,0.41628]
[1725231651484,3.2078,2402.9,2402.1,0.41628]
[1725231651778,1.03962,2404.6,2402.1,0.41628]
[1725231651779,3.2078,2404.4,2403.3,0.41606]
[1725231651978,3.2078,2404.4,2402.8,3.2078]
[1725231651979,3.2078,2404.1,2402.8,3.2078]
[1725231652182,3.2078,2404.1,2402.3,1.04057]
[1725231652183,3.2078,2404.1,2403.4,14.36477317]
[1725231652374,3.2078,2403.6,2402.9,14.32808622]
[1725231652574,3.2078,2404.0,2402.9,4.1608]
[1725231652783,0.00623571,2403.5,2403.0,0.00623571]
[1725231653077,0.00623571,2403.5,2403.0,14.1273236]
[1725231653280,0.00623571,2403.5,2403.0,0.00623571]
[1725231653281,3.2078,2403.3,2403.0,0.00623571]
[1725231653579,4.16703571,2403.5,2403.0,0.00623571]
[1725231653580,3.21403571,2403.5,2403.0,0.00623571]
[1725231653767,3.2078,2403.2,2403.0,0.00623571]
[1725231654183,3.2078,2403.4,2403.0,0.00623571]
[1725231654378,0.00623571,2403.5,2403.1,0.4161]
[1725231654575,0.00623571,2403.5,2403.0,0.42235571]
[1725231654775,0.00623571,2403.5,2403.0,0.00623571]
[1725231654976,0.00623571,2403.5,2403.1,0.41609]
[1725231655180,0.00623571,2403.5,2403.0,4.16703571]
[1725231655481,3.2078,2404.5,2403.7,0.41598]
[1725231655677,5.0,2404.9,2403.7,0.41598]
[1725231655678,3.2078,2404.3,2403.7,0.41598]
[1725231656080,3.2078,2404.3,2403.1,3.2078]
[1725231656374,0.00623571,2403.9,2403.7,0.41598]
[1725231656574,0.00623571,2403.9,2403.8,0.41598]
[1725231656776,0.00623571,2403.9,2403.8,5.94043462]
[1725231657085,3.2078,2404.5,2403.8,15.68445462]
[1725231657383,3.2078,2403.9,2403.0,3.2078]
[1725231657584,3.2078,2403.6,2402.7,3.6246]
[1725231657882,3.2078,2403.6,2402.9,0.83293]
[1725231658075,3.2078,2404.0,2403.0,18.03558913]
[1725231658274,3.2078,2403.7,2403.0,13.87478913]
[1725231658579,3.2078,2403.7,2403.0,0.00623571]
[1725231658979,3.2078,2403.7,2403.0,0.42235571]
[1725231659285,3.2078,2403.7,2403.1,5.42282714]
[1725231659484,3.2078,2404.2,2403.4,0.41604]
[1725231659784,3.2078,2403.9,2403.6,0.41601]
[1725231659987,3.2078,2403.9,2403.2,0.41608]
[1725231660176,4.52550433,2403.8,2403.0,3.21403571]
[1725231660383,4.52550433,2403.8,2403.7,0.416]
[1725231660573,3.62372,2404.2,2403.3,5.31595541]
[1725231660773,3.2078,2403.5,2403.0,3.21403571]
[1725231661086,3.2078,2403.4,2403.0,3.21403571]
[1725231661577,0.52229146,2404.4,2403.3,0.41607]
[1725231661578,3.2078,2403.8,2403.3,0.41607]
[1725231661782,3.2078,2403.4,2403.1,0.4161]
[1725231661980,3.2078,2403.4,2403.0,3.21403571]
[1725231662184,3.2078,2403.4,2403.0,0.00623571]
[1725231662185,3.6239,2403.1,2403.0,0.00623571]
[1725231662390,3.6239,2403.1,2401.2,1.3282]
[1725231662391,0.41623,2402.4,2401.2,1.3282]
[1725231662581,3.2078,2403.1,2401.2,1.3282]
[1725231662582,3.2078,2402.0,2401.2,1.3282]
[1725231662789,3.2078,2402.2,2401.2,5.44426966]
[1725231663085,3.2078,2402.2,2401.0,0.4168]
[1725231663293,5.0,2402.9,2401.4,0.00623571]
[1725231663294,3.2078,2401.6,2401.4,0.00623571]
[1725231663477,0.41644,2401.2,2400.0,7.6078]
[1725231663685,3.2078,2401.6,2400.0,4.4]
[1725231663686,3.2078,2400.7,2400.0,4.4]
[1725231664185,4.65806562,2400.6,2400.0,4.4]
[1725231664578,5.0,2401.4,2400.0,4.4]
[1725231664579,3.2078,2400.4,2400.0,4.4]
[1725231664794,0.00624909,2400.5,2400.1,0.00624909]
[1725231665083,0.00624909,2400.5,2400.4,0.41657]
[1725231665084,9.09e-06,2400.5,2400.4,0.41657]
[1725231665390,6.00000909,2400.5,2400.1,0.00624909]
[1725231665688,4.1664,2400.4,2400.1,0.00624909]
[1725231665880,4.63705141,2400.4,2400.1,0.00624909]
[1725231666184,4.1664,2400.3,2400.1,0.00624909]
[1725231666491,6.41657,2400.4,2399.1,0.8336]
[1725231666492,4.18245631,2400.4,2400.3,1.17171764]
[1725231666692,9.09e-06,2400.5,2400.3,1.17171764]
[1725231666991,9.09e-06,2400.5,2399.1,5.4168]
[1725231666992,9.09e-06,2400.5,2400.4,1.58828764]